bitfinex/quotes_SOLUSD_20251204
["timestamp","ask_amount","ask_price","bid_price","bid_amount"]
[1764882186678,7.14183688,140.02,140.0,0.69]
[1764882187474,15.0415576,140.03,140.0,3.66090255]
[1764882187678,7.1410478,140.04,140.0,3.66090255]
[1764882187863,110.6,140.06,140.03,2.97090255]
[1764882188069,117.73995338,140.06,140.03,2.97090255]
[1764882188379,109.83995338,140.06,140.04,0.69]
[1764882189483,109.83995338,140.06,140.03,2.97090255]
[1764882189659,109.83995338,140.06,140.03,3.66090255]
[1764882190087,109.83995338,140.06,140.04,0.69]
[1764882190289,106.37090255,140.1,140.05,2.97090255]
[1764882190588,5.50349552,140.09,140.05,3.66090255]
[1764882190781,12.70349552,140.08,140.05,3.66090255]
[1764882190977,7.9,140.08,140.05,3.66090255]
[1764882191185,7.9,140.08,140.03,7.14132204]
[1764882191186,10.87090255,140.08,140.03,2.97090255]
[1764882191400,7.13826825,140.09,140.05,2.97090255]
[1764882191593,7.9,140.08,140.05,2.97090255]
[1764882191765,7.9,140.08,140.06,3.66090255]
[1764882192073,7.9,140.08,140.06,2.97090255]
[1764882192478,7.9,140.08,140.05,2.97090255]
[1764882192673,7.9,140.08,140.05,10.11100071]
[1764882192674,8.6,140.08,140.05,10.11100071]
[1764882192873,8.6,140.08,140.05,10.78100071]
[1764882193361,7.13673993,140.12,140.07,2.97090255]
[1764882193568,19.83621491,140.12,140.08,3.64090255]
[1764882193768,15.03673993,140.12,140.08,3.64090255]
[1764882193987,15.03673993,140.12,140.09,0.67]
[1764882194363,35.84949232,140.12,140.07,2.97090255]
[1764882194564,2.97090255,140.1,140.06,0.67]
[1764882194963,0.67,140.09,140.06,0.67]
[1764882195178,2.97090255,140.11,140.06,3.64090255]
[1764882195385,10.77853423,140.11,140.06,10.78031845]
[1764882195597,7.13763168,140.11,140.08,2.97090255]
[1764882195973,7.13763168,140.11,140.08,3.64090255]
[1764882196485,7.13763168,140.11,140.08,0.67]
[1764882197691,7.80763168,140.11,140.07,0.67]
[1764882197985,3.64090255,140.1,140.05,3.64090255]
[1764882198188,3.64090255,140.09,140.05,3.64090255]
[1764882198374,3.64090255,140.09,140.05,0.67]
[1764882198576,3.64090255,140.08,140.03,10.78203322]
[1764882198784,3.64090255,140.08,140.04,0.67]
[1764882198991,7.9,140.09,140.04,10.78132559]
[1764882198992,10.87090255,140.09,140.04,10.78132559]
[1764882199186,7.9,140.09,140.05,2.97090255]
[1764882199377,15.70835022,140.09,140.05,10.78116087]
[1764882199578,15.70835022,140.09,140.06,0.67]
[1764882202296,109.83794733,140.1,140.06,10.78058067]
[1764882202503,118.40794733,140.1,140.06,10.78058067]
[1764882202881,20.81402581,140.11,140.07,3.64090255]
[1764882202882,7.13742517,140.11,140.07,3.64090255]
[1764882203079,7.13694381,140.12,140.09,2.97090255]
[1764882203400,7.80521227,140.15,140.11,2.97090255]
[1764882203693,10.77611482,140.15,140.11,0.67]
[1764882204100,10.59457988,140.15,140.11,0.67]
[1764882206076,10.59457988,140.15,140.11,3.64090255]
[1764882206292,7.62367733,140.15,140.11,3.64090255]
[1764882206797,7.13419419,140.17,140.14,2.97090255]
[1764882207001,7.13419419,140.17,140.15,2.97090255]
[1764882207304,7.13419419,140.17,140.14,2.97090255]
[1764882207481,0.67,140.16,140.12,0.67]
[1764882207687,0.67,140.16,140.12,3.64090255]
[1764882208097,3.64090255,140.16,140.11,2.97090255]
[1764882208283,7.9,140.15,140.11,2.97090255]
[1764882208605,8.57,140.15,140.11,3.64090255]
[1764882208796,8.57,140.15,140.1,16.308864]
[1764882208797,7.80572142,140.14,140.1,2.97090255]
[1764882208998,7.80572142,140.14,140.1,3.64090255]
[1764882211003,3.64090255,140.13,140.07,7.808995]
[1764882211209,2.97090255,140.11,140.07,0.67]
[1764882211500,2.97090255,140.11,140.06,2.97090255]
[1764882211684,3.64090255,140.1,140.06,0.67]
[1764882212005,3.64090255,140.1,140.04,24.208864]
[1764882212006,2.97090255,140.08,140.04,3.64090255]
[1764882212207,20.35084747,140.09,140.04,3.64090255]
[1764882212381,19.68084747,140.09,140.04,3.64090255]
[1764882212688,20.35084747,140.09,140.04,3.64090255]
[1764882212888,11.54090255,140.09,140.05,3.64090255]
[1764882213084,11.54090255,140.09,140.06,2.97090255]
[1764882213085,7.9,140.09,140.06,2.97090255]
[1764882213302,15.03830781,140.09,140.06,3.64090255]
[1764882213477,15.03830781,140.09,140.06,0.67]
[1764882214602,18.00921036,140.09,140.06,0.67]
[1764882215109,18.00921036,140.09,140.04,10.11151972]
[1764882215314,3.64090255,140.08,140.04,0.67]
[1764882215490,2.97090255,140.07,140.02,27.09140872]
[1764882215677,2.97090255,140.06,140.02,24.12050617]
[1764882216114,2.97090255,140.06,140.03,0.67]
[1764882216409,3.64090255,140.06,140.02,24.12048139]
[1764882216887,3.64090255,140.06,140.02,23.45048139]
[1764882217085,3.64090255,140.06,140.02,24.12048139]
[1764882217394,10.11082406,140.06,140.03,0.67]
[1764882217903,10.78082406,140.06,140.01,18.68317716]
[1764882218109,0.67,140.05,140.01,18.68317716]
[1764882218477,3.64090255,140.05,140.01,15.71227461]
[1764882218987,3.64090255,140.05,140.01,7.81227461]
[1764882219285,2.97090255,140.02,139.98,8.01385592]
[1764882219614,25.66285917,140.04,139.98,8.01385592]
[1764882219615,2.97090255,140.01,139.98,0.87]
[1764882220308,2.97090255,140.0,139.98,0.2]
[1764882220509,7.9,140.03,139.98,0.2]
[1764882220510,2.97090255,139.99,139.98,0.2]
[1764882220700,2.97090255,140.0,139.98,0.2]
[1764882221030,2.97090255,139.99,139.98,0.2]
[1764882221212,10.78426993,139.99,139.98,0.2]
[1764882221390,26.66382142,140.03,139.98,0.2]
[1764882221712,7.14183688,140.02,139.98,3.84090255]
[1764882221898,7.14183688,140.02,139.98,8.01378419]
[1764882222098,7.14183688,140.02,139.99,0.67]
[1764882222317,15.04151758,140.03,139.99,3.64090255]
[1764882222707,18.51872331,140.07,140.01,2.97090255]
[1764882223021,10.87090255,140.06,140.01,2.97090255]
[1764882223220,7.14030703,140.05,140.01,10.77322522]
[1764882223399,7.14030703,140.05,140.02,0.66]
[1764882224713,14.21240612,140.05,140.02,0.66]
[1764882225110,7.07209909,140.03,139.98,0.2]
[1764882225304,0.66,140.04,139.98,0.2]
[1764882225305,7.07209909,140.0,139.98,0.2]
[1764882226201,7.07209909,140.01,139.98,0.2]
[1764882226402,7.80254804,140.01,139.98,0.2]
[1764882226604,14.87464713,140.01,139.98,0.2]
[1764882227815,7.07209909,139.99,139.98,0.2]
[1764882228197,14.21546647,139.99,139.98,0.2]
[1764882229199,22.11546647,139.99,139.98,0.2]
[1764882229922,7.07209909,139.99,139.98,0.86]
[1764882230222,14.97209909,140.0,139.98,0.86]
[1764882230420,14.97209909,140.0,139.99,0.66]
[1764882232322,14.97209909,140.0,139.98,0.2]
[1764882232523,14.97209909,140.0,139.98,0.86]
[1764882232901,7.07209909,139.99,139.98,0.86]
[1764882236706,7.73209909,139.99,139.98,0.2]
[1764882236924,14.87546647,139.99,139.98,0.2]
[1764882239006,117.57546647,139.99,139.98,0.2]
[1764882240010,144.24382984,139.99,139.93,0.2]
[1764882240215,7.07209909,139.94,139.93,0.2]
[1764882240424,14.21801876,139.94,139.93,0.2]
[1764882241105,14.87801876,139.94,139.93,0.2]
[1764882241510,14.21801876,139.94,139.93,0.2]
[1764882241719,7.80591967,139.94,139.93,0.2]
[1764882242119,14.21801876,139.94,139.93,0.2]
[1764882242416,19.47973645,139.94,139.93,0.2]
[1764882243023,28.94968137,139.94,139.93,0.2]
[1764882244523,73.73413403,139.94,139.87,0.86]
[1764882244719,12.33381678,139.9,139.87,0.86]
[1764882244930,12.33381678,139.89,139.87,0.86]
[1764882245128,7.9,139.89,139.88,0.66]
[1764882245333,7.9,139.89,139.87,0.86]
[1764882246324,7.9,139.89,139.87,0.2]
[1764882246527,7.9,139.89,139.88,0.66]
[1764882247647,7.14760945,139.91,139.88,5.31184201]
[1764882247942,7.92,139.9,139.88,12.46057255]
[1764882248158,7.92,139.91,139.89,0.66]
[1764882248444,7.92,139.92,139.89,0.66]
[1764882248756,7.14387769,139.98,139.91,12.33554067]
[1764882248925,7.92,139.97,139.94,12.33554067]
[1764882249429,7.92,139.97,139.95,0.66]
[1764882250340,19.47941836,139.98,139.95,0.66]
[1764882250341,7.14387769,139.98,139.95,0.66]
[1764882250538,27.39941836,139.98,139.95,0.66]
[1764882251550,12.33554067,139.96,139.89,42.09962794]
[1764882251723,12.33554067,139.95,139.91,0.66]
[1764882251922,37.3391126,139.98,139.93,12.33554067]
[1764882252124,7.92,139.97,139.93,19.48166051]
[1764882252441,7.92,139.97,139.94,0.66]
[1764882252945,15.06467097,139.97,139.94,0.66]
[1764882253926,13.02554067,139.96,139.91,12.33554067]
[1764882254147,115.72554067,139.96,139.92,0.72]
[1764882254341,102.7,139.96,139.93,12.33554067]
[1764882254537,26.66899204,139.99,139.95,12.33554067]
[1764882254538,7.14369014,139.99,139.95,12.33554067]
[1764882254750,110.62,140.0,139.96,12.33554067]
[1764882254950,117.76302533,140.0,139.96,12.33554067]
[1764882255144,117.76302533,140.0,139.96,13.05554067]
[1764882255449,117.76302533,140.0,139.97,0.72]
[1764882256646,9.49994492,139.99,139.95,12.33554067]
[1764882256828,13.02554067,139.99,139.95,0.72]
[1764882257026,7.14387769,139.98,139.96,0.72]
[1764882257235,7.14359028,139.99,139.96,0.72]
[1764882257436,7.83359028,139.99,139.95,19.48091067]
[1764882257636,7.83359028,139.99,139.95,20.20091067]
[1764882257836,7.92,139.98,139.95,13.05554067]
[1764882258044,15.75359028,139.99,139.95,13.05554067]
[1764882258433,15.75359028,139.99,139.95,12.33554067]
[1764882258655,15.06359028,139.99,139.96,0.72]
[1764882259931,15.75359028,139.99,139.96,0.72]
[1764882260263,7.92,139.99,139.96,20.20039953]
[1764882260763,7.14199686,140.02,139.98,12.33554067]
[1764882261060,7.14155645,140.03,140.0,12.33554067]
[1764882261361,24.98638216,140.08,140.03,7.14132685]
[1764882261661,7.13877784,140.08,140.06,12.33554067]
[1764882262057,7.13877784,140.08,140.05,12.33554067]
[1764882262239,7.13877784,140.08,140.02,7.14163098]
[1764882262240,17.41994492,140.07,140.02,12.33554067]
[1764882262657,0.69,140.06,140.02,12.33554067]
[1764882263036,0.69,140.06,140.02,13.05554067]
[1764882263373,7.14030703,140.05,140.02,13.05554067]
[1764882263536,7.14030703,140.05,140.0,31.37167984]
[1764882263537,7.14030703,140.05,139.96,17.86170012]
[1764882263736,7.14030703,140.05,140.02,12.33554067]
[1764882263737,25.68107461,140.05,140.02,12.33554067]
[1764882263963,17.41994492,140.04,139.99,16.308864]
[1764882264255,17.41994492,140.04,140.0,12.33554067]
[1764882264643,0.69,140.03,140.0,12.33554067]
[1764882264842,0.69,140.03,139.99,12.33554067]
[1764882265047,0.69,140.03,139.98,12.33554067]
[1764882265663,7.14183688,140.02,139.98,12.33554067]
[1764882265864,7.14183688,140.02,139.99,12.33554067]
[1764882266065,7.83183688,140.02,139.99,12.33554067]
[1764882266363,25.68642908,140.02,139.99,12.33554067]
[1764882266556,0.69,140.01,139.96,7.86470149]
[1764882266857,102.7,140.01,139.98,12.33554067]
[1764882267264,102.7,140.01,139.98,13.05554067]
[1764882267636,7.14285714,140.0,139.98,13.05554067]
[1764882267963,109.84251467,140.01,139.99,12.33554067]
[1764882268142,109.84251467,140.01,140.0,12.33554067]
[1764882268458,109.84251467,140.01,139.99,4.64288149]
[1764882270348,109.84251467,140.01,139.99,5.36288149]
[1764882270560,109.84251467,140.01,139.99,4.64288149]
[1764882271142,0.69,140.0,139.95,0.72]
[1764882271351,0.69,140.0,139.97,4.64288149]
[1764882272367,7.14336738,139.99,139.94,23.454674]
[1764882272569,16.72994492,139.98,139.94,4.64288149]
[1764882272750,17.41994492,139.98,139.94,5.36288149]
[1764882273062,0.69,139.97,139.94,4.64288149]
[1764882275154,7.14489854,139.96,139.94,4.64288149]
[1764882275669,7.92,139.98,139.95,5.33288149]
[1764882275902,15.06404615,139.98,139.97,4.64288149]
[1764882276974,7.14404615,139.98,139.97,4.64288149]
[1764882278383,7.14346047,139.99,139.97,5.33288149]
[1764882278674,15.06298977,140.0,139.98,5.33288149]
[1764882278866,7.14298977,140.0,139.98,5.33288149]
[1764882280374,109.84245478,140.01,139.99,4.64288149]
[1764882284281,109.84245478,140.01,139.98,5.33288149]
[1764882285175,102.7,140.01,139.98,12.47659992]
[1764882285384,102.7,140.01,140.0,4.64288149]
[1764882286163,102.7,140.01,139.99,5.36288149]
[1764882286363,102.7,140.01,139.99,13.0384804]
[1764882286578,102.7,140.01,139.99,12.3184804]
[1764882287460,109.8424456,140.01,139.99,12.3184804]
[1764882288681,109.8424456,140.01,139.99,13.0384804]
[1764882289064,24.99553499,140.03,140.0,13.0384804]
[1764882289265,7.1417591,140.03,140.01,12.3184804]
[1764882289661,7.14091342,140.04,140.02,13.0384804]
[1764882289868,7.13979722,140.06,140.03,13.0384804]
[1764882290269,7.84979722,140.06,140.03,12.3184804]
[1764882290585,25.69929029,140.06,140.03,12.3184804]
[1764882291260,0.71,140.05,140.02,12.3184804]
[1764882291463,0.71,140.05,140.02,13.0384804]
[1764882291957,0.71,140.05,140.02,0.72]
[1764882292163,20.9284804,140.05,140.0,13.0384804]
[1764882292591,0.71,140.04,140.0,13.0384804]
[1764882293589,0.71,140.04,139.99,20.2184804]
[1764882293590,7.14132685,140.03,139.99,20.2184804]
[1764882293789,15.04132685,140.03,139.99,13.0384804]
[1764882293983,0.68,140.02,139.99,13.0384804]
[1764882294690,7.14234697,140.01,139.99,13.0384804]
[1764882296588,7.14234697,140.01,140.0,13.0384804]
[1764882296772,7.14183688,140.02,140.0,13.0384804]
[1764882297486,15.04151421,140.03,140.01,13.0384804]
[1764882298000,7.9,140.03,140.01,13.0384804]
[1764882298211,7.13979722,140.06,140.02,13.0384804]
[1764882298493,0.68,140.1,140.05,12.3184804]
[1764882298709,7.1387045,140.09,140.07,12.3184804]
[1764882300214,0.2,140.11,140.08,13.0384804]
[1764882300411,0.2,140.17,140.1,12.3184804]
[1764882300697,7.33429489,140.17,140.14,12.3184804]
[1764882300995,8.80994492,140.16,140.1,0.72]
[1764882301177,29.70842532,140.16,140.11,12.3184804]
[1764882301377,8.80994492,140.14,140.11,12.3184804]
[1764882301681,8.80994492,140.14,140.1,12.3184804]
[1764882301898,21.12842532,140.11,140.04,0.72]
[1764882302200,45.22063599,140.1,140.05,12.3184804]
[1764882302395,45.90063599,140.1,140.04,20.2384804]
[1764882302597,12.3184804,140.08,140.01,7.92]
[1764882302778,12.3184804,140.08,140.01,8.64]
[1764882302779,0.68,140.07,140.01,8.64]
[1764882302971,0.68,140.07,140.03,12.3184804]
[1764882303172,21.12842532,140.06,140.0,32.33609854]
[1764882303396,21.12842532,140.06,140.0,44.65457894]
[1764882303595,0.68,140.05,140.0,44.65457894]
[1764882304217,19.4592973,140.04,140.0,0.72]
[1764882304387,14.21544258,140.04,139.99,16.308864]
[1764882304577,7.75462568,140.03,139.99,0.72]
[1764882306280,7.14183688,140.02,139.99,0.72]
[1764882307490,7.82183688,140.02,139.99,0.72]
[1764882307687,7.82183688,140.02,139.97,38.44776506]
[1764882307688,32.75105476,140.02,139.97,7.86421345]
[1764882308006,25.67642908,140.02,139.98,0.72]
[1764882308692,0.68,140.01,139.96,14.93933978]
[1764882308992,7.75462568,140.01,139.96,14.93933978]
[1764882309192,7.75462568,140.01,139.96,0.72]
[1764882309392,0.68,140.0,139.96,0.72]
[1764882309794,0.68,140.0,139.95,16.308864]
[1764882309795,7.75462568,140.0,139.95,16.308864]
[1764882309998,7.07462568,139.99,139.95,16.308864]
[1764882310201,7.75462568,139.99,139.95,16.308864]
[1764882310403,0.68,139.99,139.95,24.17416749]
[1764882310923,7.82351124,139.99,139.95,24.17416749]
[1764882311522,0.68,139.98,139.93,8.64]
[1764882311802,14.21813692,139.99,139.94,24.10348968]
[1764882311803,32.07655537,139.99,139.94,24.10348968]
[1764882311990,32.75655537,139.99,139.95,0.72]
[1764882313906,7.14299753,140.0,139.97,7.07462568]
[1764882314506,26.46632099,140.01,139.98,3.63203364]
[1764882314507,7.1425012,140.01,139.98,3.63203364]
[1764882314804,7.1425012,140.01,139.98,0.66]
[1764882314991,7.1425012,140.01,139.97,2.97203364]
[1764882315312,0.69,140.0,139.97,0.66]
[1764882315490,7.1425012,140.01,139.98,0.66]
[1764882315698,7.1425012,140.01,139.98,3.63203364]
[1764882315999,7.14183688,140.02,139.99,2.97203364]
[1764882316194,7.14183688,140.02,139.99,0.66]
[1764882316386,7.83183688,140.02,139.99,0.66]
[1764882317009,7.14183688,140.02,139.99,0.66]
[1764882317214,7.83183688,140.02,139.99,0.66]
[1764882320495,109.84154284,140.03,140.0,2.97203364]
[1764882320913,109.84154284,140.03,140.0,0.66]
[1764882321291,110.53154284,140.03,140.0,0.66]
[1764882321821,109.84154284,140.03,140.0,3.63203364]
[1764882324414,109.84154284,140.03,140.0,7.73319085]
[1764882324605,109.84154284,140.03,140.0,7.07319085]
[1764882324821,109.84154284,140.03,140.01,0.66]
[1764882325648,102.7,140.03,140.02,7.07319085]
[1764882325831,7.76319085,140.07,140.02,7.07319085]
[1764882325832,26.43895173,140.07,140.02,7.07319085]
[1764882325999,26.43895173,140.07,140.03,7.73319085]
[1764882326199,0.69,140.09,140.04,7.07319085]
[1764882326419,7.13877784,140.08,140.04,7.73319085]
[1764882326846,25.67572244,140.08,140.04,7.73319085]
[1764882327416,24.98572244,140.08,140.04,7.07319085]
[1764882327728,25.67572244,140.08,140.05,7.73319085]
[1764882328027,25.67572244,140.08,140.04,0.66]
[1764882329027,24.98572244,140.08,140.04,0.66]
[1764882329208,24.98572244,140.08,140.05,7.07319085]
[1764882329616,24.98572244,140.08,140.05,7.73319085]
[1764882329846,7.13877784,140.08,140.05,7.07319085]
[1764882330009,7.82623064,140.13,140.07,7.07319085]
[1764882330323,7.82623064,140.13,140.1,7.07319085]
[1764882330538,7.13623064,140.13,140.09,16.308864]
[1764882330740,17.8405766,140.13,140.1,7.07319085]
[1764882330952,18.5305766,140.13,140.1,7.07319085]
[1764882331545,0.69,140.12,140.09,7.07319085]
[1764882331923,0.69,140.12,140.09,7.73319085]
[1764882332439,0.69,140.12,140.05,7.14014486]
[1764882332733,7.76319085,140.12,140.07,7.07319085]
[1764882332948,24.98037256,140.11,140.06,15.63319085]
[1764882333148,24.98037256,140.11,140.08,7.07319085]
[1764882333301,7.1372493,140.11,140.1,7.07319085]
[1764882333723,7.1372493,140.11,140.1,7.73319085]
[1764882333935,7.1372493,140.11,140.1,7.07319085]
[1764882334434,7.13673993,140.12,140.1,7.73319085]
[1764882334810,0.69,140.11,140.05,0.66]
[1764882335141,0.69,140.11,140.07,7.07319085]
[1764882335521,24.97858977,140.12,140.1,7.07319085]
[1764882335912,7.13673993,140.12,140.09,7.07319085]
[1764882336114,7.13673993,140.12,140.08,7.79319085]
[1764882336115,0.71,140.11,140.08,7.79319085]
[1764882336342,7.13775874,140.1,140.08,7.79319085]
[1764882337048,7.84775874,140.1,140.06,0.72]
[1764882337251,7.84775874,140.1,140.07,7.07319085]
[1764882337452,17.84078243,140.13,140.08,14.21169435]
[1764882337635,17.84078243,140.13,140.1,7.07319085]
[1764882337936,7.13694795,140.12,140.09,0.72]
[1764882338146,7.13694795,140.12,140.1,7.07319085]
[1764882338436,24.97701307,140.13,140.09,7.79319085]
[1764882338643,24.97701307,140.13,140.09,0.72]
[1764882338644,25.68701307,140.13,140.09,0.72]
[1764882338843,0.71,140.12,140.07,7.07319085]
[1764882339244,0.71,140.12,140.07,7.79319085]
[1764882339444,0.71,140.12,140.08,0.72]
[1764882340526,7.1372493,140.11,140.07,7.07319085]
[1764882340827,7.1372493,140.11,140.07,7.79319085]
[1764882341150,7.8472493,140.11,140.07,7.79319085]
[1764882341351,7.8472493,140.11,140.06,31.36862665]
[1764882341647,7.8472493,140.11,140.08,7.79319085]
[1764882341855,7.8472493,140.11,140.08,7.07319085]
[1764882342033,0.71,140.1,140.06,24.948864]
[1764882342436,0.71,140.1,140.06,32.02205485]
[1764882343454,7.13826825,140.09,140.06,32.02205485]
[1764882344439,0.7,140.08,140.04,3.66824633]
[1764882344635,0.7,140.08,140.03,7.9]
[1764882344868,0.7,140.08,140.04,3.66824633]
[1764882345464,7.13928749,140.07,140.04,0.7]
[1764882345663,24.98750623,140.07,140.03,10.86824633]
[1764882345845,0.7,140.06,140.02,2.96824633]
[1764882346248,0.7,140.06,139.98,0.7]
[1764882346249,2.96824633,140.04,139.98,0.7]
[1764882346561,7.9,140.05,139.98,0.7]
[1764882346562,0.7,140.03,139.98,3.66824633]
[1764882346749,0.7,140.03,139.99,3.66824633]
[1764882347342,7.14183688,140.02,139.99,3.66824633]
[1764882348349,7.14183688,140.02,139.99,3.64824633]
[1764882348764,0.66,140.01,139.97,0.68]
[1764882348969,0.66,140.01,139.97,27.85711033]
[1764882349164,0.66,140.01,139.97,24.888864]
[1764882349468,7.14285714,140.0,139.95,3.64824633]
[1764882349672,7.14285714,140.0,139.95,27.85711033]
[1764882349844,0.66,139.99,139.95,34.32249985]
[1764882350044,10.77110347,140.0,139.96,0.68]
[1764882350547,7.80285714,140.0,139.96,0.68]
[1764882351849,10.77110347,140.0,139.96,0.68]
[1764882352050,0.66,139.99,139.95,27.17711033]
[1764882352350,3.62824633,139.99,139.95,24.208864]
[1764882352848,0.66,139.98,139.95,16.308864]
[1764882353049,0.66,139.98,139.95,16.988864]
[1764882354273,7.80400029,139.98,139.95,16.988864]
[1764882354968,7.14400029,139.98,139.95,16.988864]
[1764882355168,7.14400029,139.98,139.95,19.95711033]
[1764882355375,7.80400029,139.98,139.95,19.95711033]
[1764882355863,7.80400029,139.98,139.95,16.988864]
[1764882356050,7.80400029,139.98,139.95,19.95711033]
[1764882357868,7.14336738,139.99,139.95,16.308864]
[1764882358070,7.80336738,139.99,139.95,16.308864]
[1764882358267,7.80336738,139.99,139.95,16.988864]
[1764882358467,7.80336738,139.99,139.95,19.95711033]
[1764882358674,102.7,140.01,139.98,2.96824633]
[1764882358976,0.66,140.03,139.99,3.64824633]
[1764882359178,7.14149558,140.03,140.01,2.96824633]
[1764882359556,7.80149558,140.03,139.99,8.58]
[1764882359757,7.80149558,140.03,139.99,2.96824633]
[1764882359758,0.66,140.02,139.99,2.96824633]
[1764882360064,7.14234697,140.01,139.98,26.42096161]
[1764882360383,7.14234697,140.01,139.99,2.96824633]
[1764882360585,119.40994492,140.06,140.0,2.96824633]
[1764882360879,0.66,140.05,140.02,2.96824633]
[1764882361671,25.65107461,140.05,140.02,2.96824633]
[1764882362084,0.66,140.04,139.99,2.96824633]
[1764882362261,0.66,140.04,139.97,0.68]
[1764882362262,0.66,140.04,140.0,2.96824633]
[1764882362466,8.80994492,140.03,139.97,32.03292759]
[1764882362664,8.80994492,140.03,140.0,2.96824633]
[1764882362889,0.66,140.02,140.0,2.96824633]
[1764882363187,103.36,140.04,140.01,2.96824633]
[1764882363486,103.36,140.04,140.02,2.96824633]
[1764882363666,7.80132685,140.03,140.02,2.96824633]
[1764882364486,7.80132685,140.03,140.0,4.64181213]
[1764882364671,0.66,140.02,140.0,4.64181213]
[1764882365266,0.66,140.02,139.99,4.64181213]
[1764882365964,7.14234697,140.01,139.99,4.64181213]
[1764882366282,44.51091683,140.06,140.0,9.96362426]
[1764882366283,102.7,140.06,140.0,9.96362426]
[1764882366483,111.26,140.06,140.03,4.64181213]
[1764882366667,118.39990283,140.06,140.04,4.64181213]
[1764882367064,110.49990283,140.06,140.04,4.64181213]
[1764882367769,0.66,140.05,140.03,4.64181213]
[1764882367972,7.1408169,140.04,140.0,32.0315006]
[1764882368183,7.1408169,140.04,140.02,4.64181213]
[1764882368369,7.14038775,140.05,140.03,4.64181213]
[1764882368569,110.49985494,140.06,140.03,5.32181213]
[1764882368781,110.49985494,140.06,140.03,4.64181213]
[1764882369174,110.49985494,140.06,140.04,4.64181213]
[1764882369391,110.49985494,140.06,140.03,4.64181213]
[1764882369888,110.49985494,140.06,140.04,4.64181213]
[1764882370290,109.83980614,140.06,140.05,4.64181213]
[1764882370493,102.7,140.06,140.05,4.64181213]
[1764882370716,102.7,140.06,140.05,5.32181213]
[1764882370992,102.7,140.06,140.05,4.64181213]
[1764882371980,7.9,140.09,140.05,5.32181213]
[1764882372184,15.69855165,140.09,140.06,4.64181213]
[1764882373296,9.48994492,140.08,140.03,16.308864]
[1764882373476,9.48994492,140.08,140.04,4.64181213]
[1764882373681,0.68,140.07,140.04,4.64181213]
[1764882374483,16.308864,140.12,140.06,4.64181213]
[1764882374484,7.8170495,140.12,140.06,4.64181213]
[1764882374777,7.8170495,140.12,140.05,33.55094221]
[1764882374778,9.48994492,140.11,140.05,33.55094221]
[1764882374986,9.48994492,140.11,140.08,4.64181213]
[1764882375182,0.68,140.11,140.09,4.64181213]
[1764882375380,7.81725404,140.11,140.09,4.64181213]
[1764882375790,9.48994492,140.1,140.05,15.71999351]
[1764882375997,9.48994492,140.1,140.07,4.64181213]
[1764882376186,0.68,140.09,140.07,4.64181213]
[1764882376504,9.48994492,140.1,140.07,4.64181213]
[1764882377100,8.80994492,140.1,140.07,4.64181213]
[1764882377402,7.13840485,140.09,140.07,4.64181213]
[1764882377577,102.7,140.13,140.08,13.20181213]
[1764882377776,0.68,140.15,140.12,4.64181213]
[1764882377977,7.13593554,140.14,140.11,4.64181213]
[1764882378174,7.13593554,140.14,140.1,4.64181213]
[1764882378393,0.68,140.13,140.1,4.64181213]
[1764882378587,0.68,140.13,140.11,4.64181213]
[1764882378788,0.68,140.13,140.1,0.66]
[1764882378991,17.83748546,140.16,140.08,7.9]
[1764882378992,0.68,140.16,140.12,4.64181213]
[1764882379205,0.68,140.16,140.14,4.64181213]
[1764882379409,0.2,140.17,140.15,4.64181213]
[1764882379578,0.88,140.17,140.14,4.64181213]
[1764882380006,0.2,140.17,140.14,4.64181213]
[1764882380311,8.01420918,140.17,140.14,4.64181213]
[1764882380688,0.68,140.16,140.11,23.44596092]
[1764882381013,0.68,140.16,140.11,28.87067613]
[1764882381175,0.68,140.16,140.12,4.64181213]
[1764882381381,7.13521227,140.15,140.12,4.64181213]
[1764882381782,0.68,140.15,140.12,12.43848769]
[1764882381996,7.13481874,140.16,140.13,4.64181213]
[1764882382280,7.81481874,140.16,140.12,5.30181213]
[1764882382801,18.03548548,140.17,140.15,4.64181213]
[1764882382802,0.2,140.17,140.15,4.64181213]
[1764882382986,0.2,140.17,140.16,5.30181213]
[1764882383495,8.01441366,140.17,140.14,16.308864]
[1764882383702,0.2,140.17,140.16,4.64181213]